[Event "Late-Titled-Tuesday-Blitz-October-24-2023"]
[Site "Chess.com"]
[Date "2023.10.24"]
[Round "9"]
[White "Mikhal867"]
[Black "effefe"]
[Result "1-0"]
[WhiteElo "2442"]
[BlackElo "2336"]
[TimeControl "180+1"]
[EndTime "15:44:19 PDT"]
[Termination "Mikhal867 won on time"]

1. d4 {[%clk 0:02:54.4]} 1... Nf6 {[%clk 0:02:57]} 2. c4 {[%clk 0:02:52.4]} 2...
g6 {[%clk 0:02:51.8]} 3. f3 {[%clk 0:02:46.1]} 3... Bg7 {[%clk 0:02:51.5]} 4. e4
{[%clk 0:02:45.9]} 4... d6 {[%clk 0:02:52.1]} 5. Nc3 {[%clk 0:02:45.8]} 5... O-O
{[%clk 0:02:52.5]} 6. Be3 {[%clk 0:02:45]} 6... e5 {[%clk 0:02:52.6]} 7. Nge2
{[%clk 0:02:44.3]} 7... a6 {[%clk 0:02:39.7]} 8. Qd2 {[%clk 0:02:41.7]} 8... Nc6
{[%clk 0:02:27.6]} 9. d5 {[%clk 0:02:40.4]} 9... Ne7 {[%clk 0:02:24.1]} 10. Nc1
{[%clk 0:02:36.9]} 10... c6 {[%clk 0:02:10.6]} 11. Be2 {[%clk 0:02:28.5]} 11...
cxd5 {[%clk 0:02:07.8]} 12. cxd5 {[%clk 0:02:26.9]} 12... Nd7 {[%clk 0:02:05.4]}
13. g4 {[%clk 0:02:21]} 13... b5 {[%clk 0:02:02.5]} 14. Nb3 {[%clk 0:02:19.1]}
14... Nb6 {[%clk 0:02:00.2]} 15. h4 {[%clk 0:02:04.9]} 15... Bd7 {[%clk
0:01:55.2]} 16. h5 {[%clk 0:02:02.8]} 16... Rc8 {[%clk 0:01:52.7]} 17. Bh6
{[%clk 0:01:54.8]} 17... Bh8 {[%clk 0:01:37.3]} 18. Bxf8 {[%clk 0:01:51.6]}
18... Qxf8 {[%clk 0:01:38.2]} 19. hxg6 {[%clk 0:01:39]} 19... fxg6 {[%clk
0:01:39.1]} 20. Qh6 {[%clk 0:01:34.2]} 20... Qf7 {[%clk 0:01:38.9]} 21. Rc1
{[%clk 0:01:26.9]} 21... Nc4 {[%clk 0:01:37]} 22. Bxc4 {[%clk 0:01:22.8]} 22...
Rxc4 {[%clk 0:01:26.3]} 23. Nd2 {[%clk 0:01:22.3]} 23... Rd4 {[%clk 0:01:15.2]}
24. Ne2 {[%clk 0:01:20.1]} 24... Rd3 {[%clk 0:01:04.8]} 25. Rc7 {[%clk
0:01:19.1]} 25... Be8 {[%clk 0:00:52.4]} 26. Nc1 {[%clk 0:01:09.3]} 26... Rd4
{[%clk 0:00:43.4]} 27. Qe3 {[%clk 0:01:07.7]} 27... Bf6 {[%clk 0:00:40.6]} 28.
Ne2 {[%clk 0:00:58.4]} 28... Ra4 {[%clk 0:00:36.9]} 29. a3 {[%clk 0:00:57]}
29... Qf8 {[%clk 0:00:27.8]} 30. g5 {[%clk 0:00:56]} 30... Bg7 {[%clk
0:00:25.8]} 31. Qa7 {[%clk 0:00:55.5]} 31... Nxd5 {[%clk 0:00:13.7]} 32. exd5
{[%clk 0:00:52.2]} 32... e4 {[%clk 0:00:14.2]} 33. Rxg7+ {[%clk 0:00:50.4]}
33... Qxg7 {[%clk 0:00:13.3]} 34. Qxg7+ {[%clk 0:00:49.7]} 34... Kxg7 {[%clk
0:00:14.2]} 35. Nxe4 {[%clk 0:00:48.4]} 35... Bf7 {[%clk 0:00:14.3]} 36. N2c3
{[%clk 0:00:47.7]} 36... Rd4 {[%clk 0:00:14]} 37. Nxd6 {[%clk 0:00:46.8]} 37...
Bxd5 {[%clk 0:00:13.7]} 38. Nxd5 {[%clk 0:00:43.3]} 38... Rxd5 {[%clk
0:00:14.6]} 39. Ne4 {[%clk 0:00:42.6]} 39... Rd3 {[%clk 0:00:14.4]} 40. O-O
{[%clk 0:00:41.6]} 40... Rb3 {[%clk 0:00:13.6]} 41. Rf2 {[%clk 0:00:39.3]} 41...
Kf7 {[%clk 0:00:12.8]} 42. f4 {[%clk 0:00:37.6]} 42... a5 {[%clk 0:00:10.9]} 43.
Kg2 {[%clk 0:00:36.6]} 43... b4 {[%clk 0:00:09.8]} 44. a4 {[%clk 0:00:35.2]}
44... Re3 {[%clk 0:00:08.7]} 45. Nd6+ {[%clk 0:00:34.3]} 45... Ke6 {[%clk
0:00:03.4]} 46. Nc4 {[%clk 0:00:33.4]} 46... Re4 {[%clk 0:00:03.1]} 47. Nxa5
{[%clk 0:00:33]} 47... b3 {[%clk 0:00:03.8]} 48. Nxb3 {[%clk 0:00:30.5]} 48...
Kf5 {[%clk 0:00:02.6]} 49. Nc5 {[%clk 0:00:29.2]} 49... Rb4 {[%clk 0:00:02.4]}
50. b3 {[%clk 0:00:27.9]} 50... Kg4 {[%clk 0:00:02.6]} 51. Rf3 {[%clk
0:00:20.5]} 51... Rb8 {[%clk 0:00:02.6]} 52. a5 {[%clk 0:00:20]} 52... Rd8
{[%clk 0:00:02.8]} 53. a6 {[%clk 0:00:18.9]} 53... Rd2+ {[%clk 0:00:03.2]} 54.
Rf2 {[%clk 0:00:19.2]} 54... Rd1 {[%clk 0:00:03.7]} 55. a7 {[%clk 0:00:18.5]}
55... Ra1 {[%clk 0:00:04.3]} 56. Na4 {[%clk 0:00:18.6]} 56... Rh1 {[%clk
0:00:01.1]} 57. a8=B {[%clk 0:00:16.8]} 57... Rh3 {[%clk 0:00:02]} 58. Bf3+
{[%clk 0:00:15.8]} 58... Kh4 {[%clk 0:00:01.6]} 59. Nc5 {[%clk 0:00:15]} 59...
Rg3+ {[%clk 0:00:01.6]} 60. Kf1 {[%clk 0:00:14.3]} 60... Rh3 {[%clk 0:00:02.2]}
61. Ne4 {[%clk 0:00:13.4]} 1-0

[Event "Late-Titled-Tuesday-Blitz-October-24-2023"]
[Site "Chess.com"]
[Date "2023.10.24"]
[Round "9"]
[White "Meri-Arabidze"]
[Black "nochewycandy"]
[Result "0-1"]
[WhiteElo "2631"]
[BlackElo "2793"]
[TimeControl "180+1"]
[EndTime "15:44:51 PDT"]
[Termination "nochewycandy won by resignation"]

1. Nf3 {[%clk 0:02:59.5]} 1... d5 {[%clk 0:02:59.5]} 2. b3 {[%clk 0:02:59.9]}
2... Bg4 {[%clk 0:02:58.2]} 3. d4 {[%clk 0:02:57.3]} 3... Bxf3 {[%clk
0:02:57.7]} 4. exf3 {[%clk 0:02:57.5]} 4... e6 {[%clk 0:02:57.8]} 5. Bd3 {[%clk
0:02:57.1]} 5... g6 {[%clk 0:02:56.7]} 6. h4 {[%clk 0:02:49.4]} 6... h5 {[%clk
0:02:56.2]} 7. Bg5 {[%clk 0:02:48.7]} 7... Be7 {[%clk 0:02:54.6]} 8. Bxe7 {[%clk
0:02:44.6]} 8... Nxe7 {[%clk 0:02:55.5]} 9. Nd2 {[%clk 0:02:42.9]} 9... Nd7
{[%clk 0:02:54.5]} 10. f4 {[%clk 0:02:41]} 10... c5 {[%clk 0:02:54.1]} 11. Nf3
{[%clk 0:02:37.8]} 11... cxd4 {[%clk 0:02:51.3]} 12. Nxd4 {[%clk 0:02:38.4]}
12... Qc7 {[%clk 0:02:50]} 13. Qd2 {[%clk 0:02:27.4]} 13... a6 {[%clk
0:02:49.6]} 14. g3 {[%clk 0:02:24]} 14... Rc8 {[%clk 0:02:45.4]} 15. O-O {[%clk
0:02:23.2]} 15... O-O {[%clk 0:02:44.5]} 16. Rae1 {[%clk 0:02:06.9]} 16... Nc5
{[%clk 0:02:35.3]} 17. Re5 {[%clk 0:01:50.1]} 17... Nxd3 {[%clk 0:02:31.4]} 18.
cxd3 {[%clk 0:01:40.6]} 18... Qc3 {[%clk 0:02:31.4]} 19. Qe3 {[%clk 0:01:40.7]}
19... Qb2 {[%clk 0:02:09.5]} 20. a4 {[%clk 0:01:26.2]} 20... Nc6 {[%clk
0:02:00.1]} 21. Nxc6 {[%clk 0:01:26.3]} 21... Rxc6 {[%clk 0:02:01]} 22. g4
{[%clk 0:01:26.7]} 22... hxg4 {[%clk 0:01:56]} 23. h5 {[%clk 0:01:27]} 23... d4
{[%clk 0:01:37.7]} 24. Qg3 {[%clk 0:01:15.2]} 24... Qxb3 {[%clk 0:01:29.4]} 25.
a5 {[%clk 0:00:48.2]} 25... f6 {[%clk 0:01:11]} 26. Ree1 {[%clk 0:00:38.1]}
26... gxh5 {[%clk 0:01:05.5]} 27. f5 {[%clk 0:00:29.7]} 27... e5 {[%clk
0:01:02.8]} 28. Rb1 {[%clk 0:00:19.3]} 28... Qf7 {[%clk 0:01:01.1]} 29. f3
{[%clk 0:00:19.2]} 29... Qg7 {[%clk 0:00:43.3]} 30. fxg4 {[%clk 0:00:12]} 30...
Qxg4 {[%clk 0:00:40.7]} 31. Qxg4+ {[%clk 0:00:12.1]} 31... hxg4 {[%clk
0:00:41.6]} 32. Rxb7 {[%clk 0:00:12.7]} 32... Rf7 {[%clk 0:00:42.3]} 33. Rb8+
{[%clk 0:00:11.5]} 33... Kg7 {[%clk 0:00:42.9]} 34. Kg2 {[%clk 0:00:11.4]} 34...
Rc3 {[%clk 0:00:35.2]} 35. Rd1 {[%clk 0:00:10.8]} 35... Rd7 {[%clk 0:00:25.3]}
36. Kg3 {[%clk 0:00:09.4]} 36... e4 {[%clk 0:00:25.9]} 37. Kxg4 {[%clk
0:00:09.8]} 37... Rxd3 {[%clk 0:00:26]} 38. Rh1 {[%clk 0:00:09.8]} 38... Rd2
{[%clk 0:00:13.6]} 39. Rbh8 {[%clk 0:00:09.2]} 39... Rg2+ {[%clk 0:00:07.6]} 40.
Kf4 {[%clk 0:00:09.4]} 40... Kf7 {[%clk 0:00:05.2]} 41. Kxe4 {[%clk 0:00:07.5]}
41... d3 {[%clk 0:00:04.9]} 42. R8h7+ {[%clk 0:00:06.1]} 42... Rg7 {[%clk
0:00:05.2]} 43. Rxg7+ {[%clk 0:00:06.4]} 43... Kxg7 {[%clk 0:00:06.1]} 44. Rd1
{[%clk 0:00:06.7]} 44... d2 {[%clk 0:00:06.8]} 45. Ke3 {[%clk 0:00:06.9]} 45...
Kh6 {[%clk 0:00:06.9]} 46. Ke2 {[%clk 0:00:02.4]} 46... Kg5 {[%clk 0:00:07.3]}
47. Rg1+ {[%clk 0:00:02.2]} 47... Kxf5 {[%clk 0:00:07.7]} 48. Kd1 {[%clk
0:00:03.1]} 48... Ke5 {[%clk 0:00:07.9]} 49. Rg8 {[%clk 0:00:02.7]} 49... f5
{[%clk 0:00:08.2]} 50. Ra8 {[%clk 0:00:02.8]} 50... Rd6 {[%clk 0:00:08]} 51.
Re8+ {[%clk 0:00:03.4]} 51... Kf4 {[%clk 0:00:08.4]} 52. Rf8 {[%clk 0:00:03.2]}
52... Kg4 {[%clk 0:00:08.9]} 53. Rb8 {[%clk 0:00:02.7]} 53... f4 {[%clk
0:00:09.2]} 54. Rb6 {[%clk 0:00:03]} 54... Rd4 {[%clk 0:00:07.5]} 55. Rxa6
{[%clk 0:00:03.4]} 55... f3 {[%clk 0:00:08.3]} 56. Rg6+ {[%clk 0:00:03.4]} 56...
Kf4 {[%clk 0:00:08.7]} 57. Rf6+ {[%clk 0:00:03.3]} 57... Kg3 {[%clk 0:00:09]}
58. a6 {[%clk 0:00:03.7]} 58... f2 {[%clk 0:00:08.9]} 59. a7 {[%clk 0:00:04.1]}
59... Ra4 {[%clk 0:00:09.2]} 60. Kxd2 {[%clk 0:00:04.5]} 60... Rxa7 {[%clk
0:00:08.9]} 61. Rg6+ {[%clk 0:00:04.7]} 61... Kf3 {[%clk 0:00:09]} 62. Rf6+
{[%clk 0:00:04.8]} 62... Kg2 {[%clk 0:00:09.6]} 63. Rg6+ {[%clk 0:00:05.5]}
63... Kf1 {[%clk 0:00:10.3]} 64. Rg8 {[%clk 0:00:04.9]} 64... Re7 {[%clk
0:00:10.3]} 65. Rg6 {[%clk 0:00:04.1]} 65... Re5 {[%clk 0:00:10.5]} 66. Rg8
{[%clk 0:00:02.8]} 66... Rd5+ {[%clk 0:00:09]} 67. Kc3 {[%clk 0:00:02.9]} 67...
Ke2 {[%clk 0:00:08.4]} 68. Re8+ {[%clk 0:00:03.2]} 68... Kf3 {[%clk 0:00:09]}
69. Rf8+ {[%clk 0:00:03.5]} 69... Ke3 {[%clk 0:00:09.7]} 70. Kc4 {[%clk
0:00:02.9]} 70... Rd1 {[%clk 0:00:08.6]} 71. Re8+ {[%clk 0:00:02.6]} 71... Kf3
{[%clk 0:00:08.7]} 72. Rf8+ {[%clk 0:00:03]} 72... Kg2 {[%clk 0:00:09.2]} 73.
Rg8+ {[%clk 0:00:03.3]} 73... Kh3 {[%clk 0:00:09.8]} 74. Rh8+ {[%clk 0:00:03.5]}
74... Kg4 {[%clk 0:00:10.4]} 75. Rg8+ {[%clk 0:00:04.4]} 75... Kh5 {[%clk
0:00:11]} 76. Rf8 {[%clk 0:00:05.3]} 76... f1=Q+ {[%clk 0:00:10.7]} 0-1

[Event "Late-Titled-Tuesday-Blitz-October-24-2023"]
[Site "Chess.com"]
[Date "2023.10.24"]
[Round "9"]
[White "Zhigalko_Sergei"]
[Black "alexrustemov"]
[Result "1-0"]
[WhiteElo "2957"]
[BlackElo "2791"]
[TimeControl "180+1"]
[EndTime "15:44:53 PDT"]
[Termination "Zhigalko_Sergei won on time"]

1. e4 {[%clk 0:03:00.9]} 1... e6 {[%clk 0:03:00.2]} 2. d4 {[%clk 0:03:01]} 2...
d5 {[%clk 0:03:00.7]} 3. e5 {[%clk 0:03:01.6]} 3... Ne7 {[%clk 0:03:01]} 4. Nf3
{[%clk 0:03:01.2]} 4... b6 {[%clk 0:03:01]} 5. c3 {[%clk 0:03:01.4]} 5... Qd7
{[%clk 0:03:01.2]} 6. h4 {[%clk 0:03:00.8]} 6... Ba6 {[%clk 0:02:52.7]} 7. Bxa6
{[%clk 0:03:00.5]} 7... Nxa6 {[%clk 0:02:53.4]} 8. Qe2 {[%clk 0:03:01.3]} 8...
Nb8 {[%clk 0:02:52.8]} 9. h5 {[%clk 0:03:01]} 9... h6 {[%clk 0:02:45.1]} 10. O-O
{[%clk 0:03:00.8]} 10... c5 {[%clk 0:02:44.9]} 11. Rd1 {[%clk 0:03:00.5]} 11...
Nbc6 {[%clk 0:02:42.5]} 12. Nbd2 {[%clk 0:02:47.4]} 12... Qc7 {[%clk 0:02:00.2]}
13. Nf1 {[%clk 0:02:37.6]} 13... O-O-O {[%clk 0:01:58.6]} 14. Bf4 {[%clk
0:02:21.9]} 14... Kb7 {[%clk 0:01:58]} 15. Ne3 {[%clk 0:02:19.4]} 15... c4
{[%clk 0:01:55.7]} 16. b3 {[%clk 0:02:15]} 16... Na5 {[%clk 0:01:55.3]} 17. Qc2
{[%clk 0:01:32.8]} 17... Rc8 {[%clk 0:01:54.1]} 18. Rdc1 {[%clk 0:01:27]} 18...
b5 {[%clk 0:01:37.7]} 19. Rab1 {[%clk 0:01:09.9]} 19... Ka8 {[%clk 0:01:33.6]}
20. b4 {[%clk 0:00:41.4]} 20... Nac6 {[%clk 0:01:32.6]} 21. a4 {[%clk
0:00:42.1]} 21... a6 {[%clk 0:01:33]} 22. a5 {[%clk 0:00:34.6]} 22... Qd7 {[%clk
0:01:20.3]} 23. Re1 {[%clk 0:00:31.5]} 23... Re8 {[%clk 0:01:20.5]} 24. Re2
{[%clk 0:00:31.8]} 24... Nc8 {[%clk 0:01:20.7]} 25. Rbe1 {[%clk 0:00:30.8]}
25... Bxb4 {[%clk 0:01:14.9]} 26. cxb4 {[%clk 0:00:30.3]} 26... Nxb4 {[%clk
0:01:15.6]} 27. Qb1 {[%clk 0:00:20.5]} 27... Nd3 {[%clk 0:01:16]} 28. g3 {[%clk
0:00:16.9]} 28... Nxe1 {[%clk 0:01:15.2]} 29. Nxe1 {[%clk 0:00:11.9]} 29... Na7
{[%clk 0:01:14.1]} 30. N3c2 {[%clk 0:00:12.3]} 30... Nc6 {[%clk 0:01:13.8]} 31.
Bd2 {[%clk 0:00:12.7]} 31... b4 {[%clk 0:01:08.8]} 32. Nxb4 {[%clk 0:00:11.1]}
32... Rb8 {[%clk 0:01:07.4]} 33. Nec2 {[%clk 0:00:10.8]} 33... Rb5 {[%clk
0:01:04.4]} 34. Qa2 {[%clk 0:00:07.7]} 34... Rhb8 {[%clk 0:00:55.9]} 35. Nxa6
{[%clk 0:00:06]} 35... Rb2 {[%clk 0:00:55.7]} 36. Qa4 {[%clk 0:00:05.8]} 36...
R8b5 {[%clk 0:00:45.9]} 37. Bc3 {[%clk 0:00:04.9]} 37... R2b3 {[%clk 0:00:45]}
38. Re3 {[%clk 0:00:02.1]} 38... Qa7 {[%clk 0:00:31.7]} 39. Nc5 {[%clk
0:00:02.5]} 39... Rb1+ {[%clk 0:00:30.4]} 40. Kg2 {[%clk 0:00:03.1]} 40... Nxa5
{[%clk 0:00:29]} 41. Na3 {[%clk 0:00:03.4]} 41... Nc6 {[%clk 0:00:20.4]} 42.
Nxb5 {[%clk 0:00:03.2]} 42... Qxa4 {[%clk 0:00:19.6]} 43. Nxa4 {[%clk
0:00:04.1]} 43... Rxb5 {[%clk 0:00:19.8]} 44. Rf3 {[%clk 0:00:04.8]} 44... Rb7
{[%clk 0:00:17.4]} 45. Nc5 {[%clk 0:00:04.2]} 45... Ra7 {[%clk 0:00:17.4]} 46.
g4 {[%clk 0:00:04.2]} 46... Ra3 {[%clk 0:00:16.4]} 47. Kg3 {[%clk 0:00:03.8]}
47... Kb8 {[%clk 0:00:11.9]} 48. Kg2 {[%clk 0:00:03]} 48... Kc8 {[%clk
0:00:12.1]} 49. Kg3 {[%clk 0:00:02.7]} 49... Kd8 {[%clk 0:00:12.1]} 50. Nb7+
{[%clk 0:00:03.3]} 50... Ke7 {[%clk 0:00:10.9]} 51. Bb4+ {[%clk 0:00:03.1]}
51... Nxb4 {[%clk 0:00:09.6]} 52. Rxa3 {[%clk 0:00:04]} 52... Nc2 {[%clk
0:00:10.3]} 53. Ra7 {[%clk 0:00:03.5]} 53... Nxd4 {[%clk 0:00:10]} 54. Nd6+
{[%clk 0:00:03.9]} 54... Kf8 {[%clk 0:00:07.5]} 55. Ra8+ {[%clk 0:00:03.8]}
55... Ke7 {[%clk 0:00:07.4]} 56. Ra7+ {[%clk 0:00:04.7]} 56... Kf8 {[%clk
0:00:07.9]} 57. Rxf7+ {[%clk 0:00:04.3]} 57... Kg8 {[%clk 0:00:08.4]} 58. Re7
{[%clk 0:00:03.3]} 58... c3 {[%clk 0:00:07.9]} 59. Re8+ {[%clk 0:00:03.3]} 59...
Kh7 {[%clk 0:00:07.7]} 60. Rc8 {[%clk 0:00:03.9]} 60... c2 {[%clk 0:00:07.2]}
61. Kg2 {[%clk 0:00:03.4]} 61... g5 {[%clk 0:00:06.8]} 62. Rc7+ {[%clk
0:00:03.2]} 62... Kg8 {[%clk 0:00:06.8]} 63. Ne8 {[%clk 0:00:03.3]} 63... Kf8
{[%clk 0:00:06.7]} 64. Nf6 {[%clk 0:00:04.1]} 64... Ne2 {[%clk 0:00:02.3]} 65.
Rxc2 {[%clk 0:00:04.1]} 65... Nf4+ {[%clk 0:00:02.7]} 66. Kf1 {[%clk 0:00:04.5]}
66... Nd3 {[%clk 0:00:03.3]} 67. Rc7 {[%clk 0:00:02.8]} 67... Nxe5 {[%clk
0:00:02]} 68. Nd7+ {[%clk 0:00:03.2]} 68... Ke7 {[%clk 0:00:01.8]} 69. Nxe5+
{[%clk 0:00:03.3]} 69... Kd6 {[%clk 0:00:02.7]} 70. Rh7 {[%clk 0:00:03.7]} 70...
Kxe5 {[%clk 0:00:02.4]} 71. Rxh6 {[%clk 0:00:04.6]} 1-0

[Event "Late-Titled-Tuesday-Blitz-October-24-2023"]
[Site "Chess.com"]
[Date "2023.10.24"]
[Round "9"]
[White "Krakozia"]
[Black "Witik"]
[Result "1-0"]
[WhiteElo "2945"]
[BlackElo "2817"]
[TimeControl "180+1"]
[EndTime "15:45:01 PDT"]
[Termination "Krakozia won on time"]

1. c4 {[%clk 0:03:00.9]} 1... g6 {[%clk 0:02:58.1]} 2. Nc3 {[%clk 0:03:00.5]}
2... Bg7 {[%clk 0:02:58.3]} 3. d4 {[%clk 0:03:00.4]} 3... Nf6 {[%clk 0:02:56.9]}
4. e4 {[%clk 0:03:01]} 4... d6 {[%clk 0:02:57]} 5. Nf3 {[%clk 0:03:01.5]} 5...
O-O {[%clk 0:02:57.3]} 6. Be2 {[%clk 0:03:01.7]} 6... e5 {[%clk 0:02:57.6]} 7.
d5 {[%clk 0:03:01.9]} 7... a5 {[%clk 0:02:54]} 8. Bg5 {[%clk 0:03:01.5]} 8... h6
{[%clk 0:02:53.4]} 9. Bh4 {[%clk 0:03:02.1]} 9... Na6 {[%clk 0:02:48.8]} 10. O-O
{[%clk 0:03:01.6]} 10... Qe8 {[%clk 0:02:46.9]} 11. Nd2 {[%clk 0:02:57.4]} 11...
Nh7 {[%clk 0:02:40.3]} 12. Kh1 {[%clk 0:02:56.3]} 12... h5 {[%clk 0:02:32.5]}
13. f3 {[%clk 0:02:56.1]} 13... Bh6 {[%clk 0:02:31.7]} 14. Nb5 {[%clk
0:02:54.6]} 14... Be3 {[%clk 0:02:18.3]} 15. a3 {[%clk 0:02:47.1]} 15... Bd7
{[%clk 0:02:14.4]} 16. Bd3 {[%clk 0:02:37]} 16... Bb6 {[%clk 0:01:52.7]} 17. Qe2
{[%clk 0:02:31.7]} 17... Nc5 {[%clk 0:01:49.4]} 18. Bc2 {[%clk 0:02:32.1]} 18...
a4 {[%clk 0:01:48.9]} 19. Nb1 {[%clk 0:02:24.7]} 19... f5 {[%clk 0:01:31.5]} 20.
exf5 {[%clk 0:02:19.5]} 20... gxf5 {[%clk 0:01:30.1]} 21. N1c3 {[%clk
0:02:19.4]} 21... Qg6 {[%clk 0:01:21.7]} 22. Bf2 {[%clk 0:02:11]} 22... c6
{[%clk 0:01:05.5]} 23. Bxc5 {[%clk 0:01:49.2]} 23... dxc5 {[%clk 0:01:03.3]} 24.
dxc6 {[%clk 0:01:48.6]} 24... bxc6 {[%clk 0:01:03.2]} 25. Rad1 {[%clk
0:01:48.2]} 25... Rad8 {[%clk 0:00:45.1]} 26. Rd6 {[%clk 0:01:38.7]} 26... Rf6
{[%clk 0:00:37.3]} 27. Rfd1 {[%clk 0:01:35.4]} 27... Nf8 {[%clk 0:00:04.9]} 28.
Qxe5 {[%clk 0:01:16.7]} 28... Re6 {[%clk 0:00:05.3]} 29. Rxe6 {[%clk 0:01:12.2]}
29... Qxe6 {[%clk 0:00:05.6]} 30. Qxe6+ {[%clk 0:01:08.1]} 30... Bxe6 {[%clk
0:00:06]} 31. Nxa4 {[%clk 0:01:00.9]} 31... Rxd1+ {[%clk 0:00:04.6]} 32. Bxd1
{[%clk 0:01:00]} 32... Bd8 {[%clk 0:00:01.9]} 33. Nd6 {[%clk 0:00:42.8]} 33...
Be7 {[%clk 0:00:01.7]} 34. Nb7 {[%clk 0:00:42.1]} 34... Bxc4 {[%clk 0:00:02]}
35. Naxc5 {[%clk 0:00:37.7]} 35... Ne6 {[%clk 0:00:02]} 36. Bb3 {[%clk
0:00:32.3]} 36... Bxb3 {[%clk 0:00:01.6]} 37. Nxb3 {[%clk 0:00:31.4]} 37... Bf6
{[%clk 0:00:02.3]} 38. N3a5 {[%clk 0:00:25.6]} 38... Bxb2 {[%clk 0:00:02.3]} 39.
a4 {[%clk 0:00:24.5]} 39... Bc3 {[%clk 0:00:02.6]} 40. Nxc6 {[%clk 0:00:24]}
40... Kf7 {[%clk 0:00:02.4]} 41. a5 {[%clk 0:00:22.6]} 41... Nc7 {[%clk
0:00:02.9]} 42. Nb8 {[%clk 0:00:18.1]} 42... Ke6 {[%clk 0:00:03.2]} 43. a6
{[%clk 0:00:18.1]} 43... Bd4 {[%clk 0:00:03.9]} 44. Nc6 {[%clk 0:00:17.1]} 44...
Bb6 {[%clk 0:00:03.4]} 45. a7 {[%clk 0:00:16.1]} 45... Na8 {[%clk 0:00:02.3]}
46. h3 {[%clk 0:00:13.4]} 46... Kd5 {[%clk 0:00:02.6]} 47. Ne7+ {[%clk
0:00:12.9]} 47... Ke6 {[%clk 0:00:03.2]} 48. Nc8 {[%clk 0:00:12.8]} 48... Be3
{[%clk 0:00:03]} 49. g4 {[%clk 0:00:11.4]} 49... hxg4 {[%clk 0:00:03.1]} 50.
fxg4 {[%clk 0:00:11.9]} 50... fxg4 {[%clk 0:00:03.7]} 51. hxg4 {[%clk
0:00:12.5]} 51... Ke5 {[%clk 0:00:04]} 52. Kg2 {[%clk 0:00:11.7]} 52... Kf4
{[%clk 0:00:04.6]} 53. Kh3 {[%clk 0:00:11.9]} 53... Kg5 {[%clk 0:00:04.9]} 54.
Nbd6 {[%clk 0:00:11.4]} 54... Bg1 {[%clk 0:00:04]} 55. Nc4 {[%clk 0:00:10.9]}
55... Bc5 {[%clk 0:00:03.1]} 56. Ne5 {[%clk 0:00:10.6]} 56... Bg1 {[%clk
0:00:02.2]} 57. Kg3 {[%clk 0:00:09.8]} 57... Bc5 {[%clk 0:00:01.6]} 58. Nf3+
{[%clk 0:00:09.8]} 58... Kf6 {[%clk 0:00:02.1]} 59. g5+ {[%clk 0:00:10.1]} 59...
Kg7 {[%clk 0:00:02.7]} 60. Kg4 {[%clk 0:00:10.2]} 60... Nc7 {[%clk 0:00:03.4]}
61. Kf5 {[%clk 0:00:10.1]} 61... Na8 {[%clk 0:00:03.1]} 62. Ne5 {[%clk
0:00:10.1]} 62... Bd4 {[%clk 0:00:03.3]} 63. Nc6 {[%clk 0:00:09.8]} 63... Bc3
{[%clk 0:00:03.7]} 64. N6e7 {[%clk 0:00:09.5]} 64... Nc7 {[%clk 0:00:03.9]} 65.
g6 {[%clk 0:00:09.2]} 65... Na8 {[%clk 0:00:04.4]} 66. Kg5 {[%clk 0:00:09.3]}
66... Bf6+ {[%clk 0:00:04.3]} 67. Kf5 {[%clk 0:00:09.5]} 67... Bb2 {[%clk
0:00:03.4]} 68. Nd5 {[%clk 0:00:09.3]} 68... Ba1 {[%clk 0:00:02.4]} 69. Nf4
{[%clk 0:00:09.2]} 69... Bb2 {[%clk 0:00:01.8]} 70. Ne6+ {[%clk 0:00:09.4]}
70... Kh6 {[%clk 0:00:02.3]} 71. g7 {[%clk 0:00:09]} 71... Bxg7 {[%clk 0:00:02]}
72. Nxg7 {[%clk 0:00:08.2]} 72... Kxg7 {[%clk 0:00:02.5]} 73. Ke6 {[%clk
0:00:08.4]} 73... Kf8 {[%clk 0:00:02.8]} 74. Kd7 {[%clk 0:00:08.6]} 74... Kf7
{[%clk 0:00:02.9]} 75. Kc6 {[%clk 0:00:08.6]} 75... Ke6 {[%clk 0:00:03.5]} 76.
Nb6 {[%clk 0:00:09.1]} 76... Nc7 {[%clk 0:00:02.1]} 77. Kxc7 {[%clk 0:00:09.1]}
1-0

[Event "Late-Titled-Tuesday-Blitz-October-24-2023"]
[Site "Chess.com"]
[Date "2023.10.24"]
[Round "10"]
[White "Kombinator01"]
[Black "Chempiblinka"]
[Result "0-1"]
[WhiteElo "2413"]
[BlackElo "2341"]
[TimeControl "180+1"]
[EndTime "15:50:59 PDT"]
[Termination "Chempiblinka won by resignation"]

1. e4 {[%clk 0:03:00.9]} 1... c5 {[%clk 0:02:54.6]} 2. Nf3 {[%clk 0:02:58.4]}
2... Nc6 {[%clk 0:02:54.9]} 3. d4 {[%clk 0:02:59.1]} 3... cxd4 {[%clk
0:02:55.8]} 4. Nxd4 {[%clk 0:03:00]} 4... g6 {[%clk 0:02:56.4]} 5. Be3 {[%clk
0:02:59.3]} 5... Nf6 {[%clk 0:02:54.7]} 6. f3 {[%clk 0:02:55.3]} 6... Bg7 {[%clk
0:02:53.8]} 7. Nc3 {[%clk 0:02:55.3]} 7... O-O {[%clk 0:02:51.5]} 8. Bc4 {[%clk
0:02:55.7]} 8... Qb6 {[%clk 0:02:45.9]} 9. Bb3 {[%clk 0:02:14]} 9... Nxe4 {[%clk
0:02:40.4]} 10. Nxc6 {[%clk 0:02:06.6]} 10... Qxe3+ {[%clk 0:02:37.3]} 11. Qe2
{[%clk 0:02:01.3]} 11... Bxc3+ {[%clk 0:02:16.3]} 12. bxc3 {[%clk 0:02:01]} 0-1

[Event "Late-Titled-Tuesday-Blitz-October-24-2023"]
[Site "Chess.com"]
[Date "2023.10.24"]
[Round "10"]
[White "Yushko_Olga"]
[Black "The_Princess_Moon"]
[Result "0-1"]
[WhiteElo "2141"]
[BlackElo "2332"]
[TimeControl "180+1"]
[EndTime "15:51:14 PDT"]
[Termination "The_Princess_Moon won by checkmate"]

1. d4 {[%clk 0:02:59.5]} 1... c5 {[%clk 0:03:00.9]} 2. d5 {[%clk 0:02:59.5]}
2... d6 {[%clk 0:03:00.8]} 3. c4 {[%clk 0:03:00.1]} 3... e5 {[%clk 0:03:01.7]}
4. Nc3 {[%clk 0:02:59.5]} 4... Nf6 {[%clk 0:03:01.7]} 5. e4 {[%clk 0:03:00.2]}
5... g6 {[%clk 0:03:02.6]} 6. Nf3 {[%clk 0:02:59.2]} 6... Bg7 {[%clk 0:03:03.2]}
7. Bd3 {[%clk 0:02:59.2]} 7... O-O {[%clk 0:03:03.5]} 8. O-O {[%clk 0:02:59.6]}
8... Ne8 {[%clk 0:03:03.8]} 9. a3 {[%clk 0:02:51.6]} 9... f5 {[%clk 0:03:03.9]}
10. b4 {[%clk 0:02:50.1]} 10... b6 {[%clk 0:03:03.7]} 11. Bb2 {[%clk 0:02:49.5]}
11... f4 {[%clk 0:03:03.1]} 12. bxc5 {[%clk 0:02:43.8]} 12... bxc5 {[%clk
0:03:00.8]} 13. Ne2 {[%clk 0:02:43.1]} 13... g5 {[%clk 0:03:00.3]} 14. h3 {[%clk
0:02:33]} 14... h5 {[%clk 0:02:59.6]} 15. Rb1 {[%clk 0:02:17.9]} 15... g4 {[%clk
0:02:48.1]} 16. hxg4 {[%clk 0:02:17.9]} 16... hxg4 {[%clk 0:02:48.1]} 17. Nh2
{[%clk 0:02:18.4]} 17... Qh4 {[%clk 0:02:35.9]} 18. g3 {[%clk 0:02:13.6]} 18...
Qh3 {[%clk 0:02:26.2]} 19. Kh1 {[%clk 0:02:03.8]} 19... f3 {[%clk 0:02:20.1]}
20. Ng1 {[%clk 0:02:02.6]} 20... Qg2# {[%clk 0:02:19]} 0-1